[Event "The Kvibergspelen 2023"]
[Site "Kviberg Park Hotel & Conference, Krutvagen 2, Gothenburg, Sweden"]
[Date "2023.09.15"]
[Round "4.2"]
[White "Larkin, Vladyslav"]
[Black "Kistrup, Nicolai"]
[Result "0-1"]
[TimeControl "15 minutes + 5 seconds per move from move one (Round 1 - 4) / 90 minutes + 30 seconds per move from move one (Round 5 - 8)"]
[WhiteTitle "IM"]
[BlackTitle "FM"]
[WhiteFideId "14152894"]
[BlackFideId "1444816"]
[WhiteElo "2464"]
[BlackElo "2359"]

1. e4 {[%clk 00:15:09]} c5 {[%clk 00:15:08]} {[%emt 00:00:03]} 2. Nf3 {[%clk
00:15:10]} {[%emt 00:00:03]} d6 {[%clk 00:15:01]} {[%emt 00:00:12]} 3. Bb5+
{[%clk 00:15:13]} {[%emt 00:00:02]} Nd7 {[%clk 00:15:01]} {[%emt 00:00:05]} 4.
Ba4 {[%clk 00:15:17]} {[%emt 00:00:01]} Ngf6 {[%clk 00:14:11]} {[%emt
00:00:55]} 5. O-O {[%clk 00:15:20]} {[%emt 00:00:02]} e6 {[%clk 00:14:13]}
{[%emt 00:00:03]} 6. Re1 {[%clk 00:15:21]} {[%emt 00:00:03]} a6 {[%clk
00:13:12]} {[%emt 00:01:07]} 7. c4 {[%clk 00:15:18]} {[%emt 00:00:08]} Be7
{[%clk 00:13:05]} {[%emt 00:00:12]} 8. d4 {[%clk 00:15:21]} {[%emt 00:00:01]}
cxd4 {[%clk 00:13:07]} {[%emt 00:00:04]} 9. Nxd4 {[%clk 00:15:24]} {[%emt
00:00:02]} O-O {[%clk 00:13:03]} {[%emt 00:00:09]} 10. Nc3 {[%clk 00:14:51]}
{[%emt 00:00:39]} Ne5 {[%clk 00:12:08]} {[%emt 00:00:59]} 11. Qe2 {[%clk
00:14:41]} {[%emt 00:00:15]} Qc7 {[%clk 00:09:41]} {[%emt 00:02:32]} 12. Bb3
{[%clk 00:14:43]} {[%emt 00:00:04]} Bd7 {[%clk 00:07:32]} {[%emt 00:02:14]} 13.
f4 {[%clk 00:13:51]} {[%emt 00:00:56]} Neg4 {[%clk 00:07:04]} {[%emt 00:00:33]}
14. h3 {[%clk 00:13:37]} {[%emt 00:00:19]} e5 {[%clk 00:06:44]} {[%emt
00:00:25]} 15. Nf3 {[%clk 00:12:55]} {[%emt 00:00:47]} Qc5+ {[%clk 00:06:15]}
{[%emt 00:00:34]} 16. Be3 {[%clk 00:11:35]} {[%emt 00:01:25]} Nxe3 {[%clk
00:06:14]} {[%emt 00:00:07]} 17. Qxe3 {[%clk 00:11:39]} Qxe3+ {[%clk 00:05:37]}
{[%emt 00:00:41]} 18. Rxe3 {[%clk 00:11:43]} {[%emt 00:00:01]} exf4 {[%clk
00:04:46]} {[%emt 00:00:57]} 19. Rd3 {[%clk 00:11:40]} {[%emt 00:00:07]} Bc6
{[%clk 00:04:43]} {[%emt 00:00:08]} 20. Re1 {[%clk 00:10:56]} {[%emt 00:00:49]}
Nd7 {[%clk 00:04:28]} {[%emt 00:00:20]} 21. Nd5 {[%clk 00:09:45]} {[%emt
00:01:17]} Bd8 {[%clk 00:03:42]} {[%emt 00:00:50]} 22. Bc2 {[%clk 00:08:03]}
{[%emt 00:01:47]} Nc5 {[%clk 00:02:28]} {[%emt 00:01:18]} 23. Rdd1 {[%clk
00:08:02]} {[%emt 00:00:07]} Bxd5 {[%clk 00:01:40]} {[%emt 00:00:53]} 24. Rxd5
{[%clk 00:08:02]} {[%emt 00:00:05]} Bc7 {[%clk 00:01:10]} {[%emt 00:00:35]} 25.
e5 {[%clk 00:07:21]} {[%emt 00:00:47]} Rad8 {[%clk 00:00:51]} {[%emt 00:00:24]}
26. b4 {[%clk 00:07:08]} {[%emt 00:00:18]} Ne6 {[%clk 00:00:52]} {[%emt
00:00:04]} 27. exd6 {[%clk 00:07:05]} {[%emt 00:00:07]} Rxd6 {[%clk 00:00:53]}
{[%emt 00:00:04]} 28. Rxd6 {[%clk 00:07:08]} {[%emt 00:00:02]} Bxd6 {[%clk
00:00:57]} {[%emt 00:00:01]} 29. c5 {[%clk 00:07:11]} {[%emt 00:00:03]} Bc7
{[%clk 00:00:46]} {[%emt 00:00:15]} 30. Bf5 {[%clk 00:07:10]} {[%emt 00:00:06]}
a5 {[%clk 00:00:13]} {[%emt 00:00:39]} 31. Bxe6 {[%clk 00:06:32]} {[%emt
00:00:42]} fxe6 {[%clk 00:00:16]} {[%emt 00:00:01]} 32. b5 {[%clk 00:06:36]}
{[%emt 00:00:03]} Rf5 {[%clk 00:00:09]} {[%emt 00:00:11]} 33. b6 {[%clk
00:05:25]} {[%emt 00:01:16]} Bd8 {[%clk 00:00:12]} {[%emt 00:00:02]} 34. Re5
{[%clk 00:02:10]} {[%emt 00:03:20]} Kf7 {[%clk 00:00:14]} {[%emt 00:00:03]} 35.
Kf1 {[%clk 00:02:14]} {[%emt 00:00:01]} g6 {[%clk 00:00:08]} {[%emt 00:00:12]}
36. Ke2 {[%clk 00:00:47]} {[%emt 00:01:31]} Ke7 {[%clk 00:00:07]} {[%emt
00:00:06]} 37. Kd3 {[%clk 00:00:51]} {[%emt 00:00:01]} Kd7 {[%clk 00:00:07]}
{[%emt 00:00:05]} 38. Kc4 {[%clk 00:00:54]} {[%emt 00:00:02]} Bf6 {[%clk
00:00:08]} {[%emt 00:00:05]} 39. Re2 {[%clk 00:00:15]} {[%emt 00:00:43]} Rd5
{[%clk 00:00:11]} {[%emt 00:00:02]} 40. Kb5 {[%clk 00:00:12]} {[%emt 00:00:09]}
Be7 {[%clk 00:00:14]} {[%emt 00:00:04]} 41. Rc2 {[%clk 00:00:16]} e5 {[%clk
00:00:14]} {[%emt 00:00:03]} 42. Nd2 {[%clk 00:00:09]} {[%emt 00:00:15]} Bxc5
{[%clk 00:00:13]} {[%emt 00:00:13]} 43. Rxc5 {[%clk 00:00:12]} {[%emt
00:00:01]} Rxd2 {[%clk 00:00:16]} {[%emt 00:00:01]} 44. Rc7+ {[%clk 00:00:16]}
Kd6 {[%clk 00:00:20]} 45. Rxb7 {[%clk 00:00:14]} {[%emt 00:00:17]} Rxa2 {[%clk
00:00:23]} {[%emt 00:00:02]} 46. Rb8 {[%clk 00:00:17]} {[%emt 00:00:01]} e4
{[%clk 00:00:16]} {[%emt 00:00:15]} 47. Re8 {[%clk 00:00:20]} {[%emt 00:00:10]}
e3 {[%clk 00:00:17]} {[%emt 00:00:03]} 48. Re4 {[%clk 00:00:14]} {[%emt
00:00:19]} Rb2+ {[%clk 00:00:12]} {[%emt 00:00:12]} 49. Kxa5 {[%clk 00:00:10]}
{[%emt 00:00:21]} g5 {[%clk 00:00:08]} {[%emt 00:00:14]} 50. Re8 {[%clk
00:00:07]} {[%emt 00:00:04]} Kc6 {[%clk 00:00:09]} {[%emt 00:00:11]} 51. Rc8+
{[%clk 00:00:10]} {[%emt 00:00:01]} Kb7 {[%clk 00:00:11]} {[%emt 00:00:02]} 52.
Rc7+ {[%clk 00:00:14]} Kb8 {[%clk 00:00:15]} 53. Rxh7 {[%clk 00:00:18]} Rxg2
{[%clk 00:00:18]} 54. Ka6 {[%clk 00:00:20]} {[%emt 00:00:11]} Ra2+ {[%clk
00:00:21]} 55. Kb5 {[%clk 00:00:24]} Rb2+ {[%clk 00:00:19]} {[%emt 00:00:02]}
56. Ka6 {[%clk 00:00:26]} Ra2+ {[%clk 00:00:23]} 57. Kb5 {[%clk 00:00:30]} e2
{[%clk 00:00:18]} {[%emt 00:00:12]} 58. Rh8+ {[%clk 00:00:34]} Kb7 {[%clk
00:00:22]} 59. Rh7+ {[%clk 00:00:38]} Kc8 {[%clk 00:00:26]} 60. b7+ {[%clk
00:00:06]} {[%emt 00:00:21]} Kb8 {[%clk 00:00:29]} 61. Kb6 {[%clk 00:00:07]}
{[%emt 00:00:11]} Rb2+ {[%clk 00:00:33]} 62. Ka6 {[%clk 00:00:11]} {[%emt
00:00:01]} e1=Q {[%clk 00:00:27]} {[%emt 00:00:05]} 0-1

[Event "The Kvibergspelen 2023"]
[Site "Kviberg Park Hotel & Conference, Krutvagen 2, Gothenburg, Sweden"]
[Date "2023.09.15"]
[Round "4.3"]
[White "Holm, Ragnar"]
[Black "Seo, Jung Min"]
[Result "0-1"]
[TimeControl "15 minutes + 5 seconds per move from move one (Round 1 - 4) / 90 minutes + 30 seconds per move from move one (Round 5 - 8)"]
[BlackTitle "IM"]
[WhiteFideId "1505858"]
[BlackFideId "1734687"]
[WhiteElo "2128"]
[BlackElo "2462"]

1. d4 {[%clk 00:13:58]} {[%emt 00:01:13]} Nf6 {[%clk 00:15:09]} {[%emt
00:00:01]} 2. c4 {[%clk 00:14:00]} {[%emt 00:00:02]} e6 {[%clk 00:15:14]}
{[%emt 00:00:01]} 3. Nf3 {[%clk 00:14:03]} {[%emt 00:00:02]} d5 {[%clk
00:15:18]} 4. Nc3 {[%clk 00:14:05]} {[%emt 00:00:05]} c6 {[%clk 00:15:23]} 5.
Bg5 {[%clk 00:14:00]} {[%emt 00:00:09]} h6 {[%clk 00:15:26]} {[%emt 00:00:01]}
6. Bxf6 {[%clk 00:14:02]} {[%emt 00:00:03]} Qxf6 {[%clk 00:15:30]} {[%emt
00:00:02]} 7. e3 {[%clk 00:14:05]} {[%emt 00:00:03]} g6 {[%clk 00:15:24]}
{[%emt 00:00:09]} 8. Bd3 {[%clk 00:14:01]} {[%emt 00:00:09]} Nd7 {[%clk
00:15:10]} {[%emt 00:00:19]} 9. O-O {[%clk 00:13:21]} {[%emt 00:00:46]} Bg7
{[%clk 00:15:14]} {[%emt 00:00:01]} 10. Rc1 {[%clk 00:13:21]} {[%emt 00:00:05]}
O-O {[%clk 00:15:14]} {[%emt 00:00:04]} 11. e4 {[%clk 00:12:59]} {[%emt
00:00:27]} dxe4 {[%clk 00:13:19]} {[%emt 00:02:01]} 12. Nxe4 {[%clk 00:13:00]}
{[%emt 00:00:03]} Qd8 {[%clk 00:13:23]} {[%emt 00:00:01]} 13. Qe2 {[%clk
00:10:47]} {[%emt 00:02:18]} e5 {[%clk 00:13:02]} {[%emt 00:00:27]} 14. dxe5
{[%clk 00:10:38]} {[%emt 00:00:13]} Nxe5 {[%clk 00:13:06]} {[%emt 00:00:02]} 15.
Nxe5 {[%clk 00:10:14]} {[%emt 00:00:28]} Bxe5 {[%clk 00:13:09]} {[%emt
00:00:01]} 16. Ng3 {[%clk 00:09:17]} {[%emt 00:01:03]} Bg7 {[%clk 00:12:21]}
{[%emt 00:00:53]} 17. Rfe1 {[%clk 00:08:48]} {[%emt 00:00:34]} Bd7 {[%clk
00:12:01]} {[%emt 00:00:25]} 18. b4 {[%clk 00:07:24]} {[%emt 00:01:30]} Qc7
{[%clk 00:11:54]} {[%emt 00:00:11]} 19. Qc2 {[%clk 00:06:57]} {[%emt 00:00:33]}
Rae8 {[%clk 00:11:21]} {[%emt 00:00:39]} 20. c5 {[%clk 00:06:25]} {[%emt
00:00:37]} a5 {[%clk 00:10:48]} {[%emt 00:00:38]} 21. a3 {[%clk 00:06:25]}
{[%emt 00:00:05]} axb4 {[%clk 00:10:03]} {[%emt 00:00:51]} 22. axb4 {[%clk
00:06:29]} Qf4 {[%clk 00:10:02]} {[%emt 00:00:05]} 23. Bc4 {[%clk 00:03:57]}
{[%emt 00:02:38]} h5 {[%clk 00:08:24]} {[%emt 00:01:41]} 24. Rxe8 {[%clk
00:02:31]} {[%emt 00:01:32]} Rxe8 {[%clk 00:08:12]} {[%emt 00:00:16]} 25. Rd1
{[%clk 00:02:24]} {[%emt 00:00:12]} Bg4 {[%clk 00:06:55]} {[%emt 00:01:22]} 26.
Qc1 {[%clk 00:01:25]} {[%emt 00:01:04]} Qe5 {[%clk 00:06:06]} {[%emt 00:00:53]}
27. f3 {[%clk 00:01:12]} {[%emt 00:00:19]} Be6 {[%clk 00:04:53]} {[%emt
00:01:18]} 28. Bxe6 {[%clk 00:01:08]} {[%emt 00:00:10]} Qxe6 {[%clk 00:04:50]}
{[%emt 00:00:07]} 29. Ne4 {[%clk 00:01:09]} {[%emt 00:00:04]} Qb3 {[%clk
00:04:34]} {[%emt 00:00:20]} 30. Qb1 {[%clk 00:00:51]} {[%emt 00:00:25]} Qe3+
{[%clk 00:04:37]} {[%emt 00:00:01]} 31. Kf1 {[%clk 00:00:49]} {[%emt 00:00:07]}
Bd4 {[%clk 00:03:58]} {[%emt 00:00:44]} 0-1

[Event "The Kvibergspelen 2023"]
[Site "Kviberg Park Hotel & Conference, Krutvagen 2, Gothenburg, Sweden"]
[Date "2023.09.15"]
[Round "4.4"]
[White "Sivuk, Vitaly"]
[Black "Falkevall, Axel"]
[Result "1-0"]
[TimeControl "15 minutes + 5 seconds per move from move one (Round 1 - 4) / 90 minutes + 30 seconds per move from move one (Round 5 - 8)"]
[WhiteTitle "GM"]
[BlackTitle "FM"]
[WhiteFideId "14116502"]
[BlackFideId "1735560"]
[WhiteElo "2461"]
[BlackElo "2276"]

1. d4 {[%clk 00:15:07]} {[%emt 00:00:02]} Nf6 {[%clk 00:14:10]} {[%emt
00:01:01]} 2. c4 {[%clk 00:15:09]} {[%emt 00:00:03]} g6 {[%clk 00:14:14]}
{[%emt 00:00:02]} 3. Nc3 {[%clk 00:15:12]} {[%emt 00:00:02]} Bg7 {[%clk
00:14:18]} 4. e4 {[%clk 00:15:13]} {[%emt 00:00:04]} d6 {[%clk 00:14:22]} 5.
Nf3 {[%clk 00:15:15]} {[%emt 00:00:05]} O-O {[%clk 00:14:24]} 6. Be3 {[%clk
00:15:17]} {[%emt 00:00:02]} Nbd7 {[%clk 00:14:15]} {[%emt 00:00:15]} 7. Nd2
{[%clk 00:15:18]} {[%emt 00:00:04]} c5 {[%clk 00:13:58]} {[%emt 00:00:23]} 8.
d5 {[%clk 00:15:19]} {[%emt 00:00:03]} e6 {[%clk 00:14:00]} {[%emt 00:00:02]} 9.
Be2 {[%clk 00:15:03]} {[%emt 00:00:20]} exd5 {[%clk 00:14:02]} {[%emt
00:00:05]} 10. cxd5 {[%clk 00:15:07]} {[%emt 00:00:02]} a6 {[%clk 00:13:21]}
{[%emt 00:00:45]} 11. a4 {[%clk 00:15:09]} {[%emt 00:00:03]} Re8 {[%clk
00:13:16]} {[%emt 00:00:10]} 12. O-O {[%clk 00:15:07]} {[%emt 00:00:07]} Rb8
{[%clk 00:13:08]} {[%emt 00:00:13]} 13. Qc2 {[%clk 00:13:56]} {[%emt 00:01:15]}
Ne5 {[%clk 00:08:28]} {[%emt 00:04:46]} 14. h3 {[%clk 00:13:50]} {[%emt
00:00:11]} Nh5 {[%clk 00:08:23]} {[%emt 00:00:11]} 15. f4 {[%clk 00:13:02]}
{[%emt 00:00:52]} Nd7 {[%clk 00:08:20]} {[%emt 00:00:08]} 16. Bxh5 {[%clk
00:11:18]} {[%emt 00:01:50]} gxh5 {[%clk 00:08:23]} {[%emt 00:00:01]} 17. e5
{[%clk 00:11:15]} {[%emt 00:00:07]} dxe5 {[%clk 00:08:14]} {[%emt 00:00:15]} 18.
f5 {[%clk 00:11:19]} {[%emt 00:00:02]} e4 {[%clk 00:07:13]} {[%emt 00:01:05]}
19. Ncxe4 {[%clk 00:08:38]} {[%emt 00:02:47]} Nf6 {[%clk 00:06:26]} {[%emt
00:00:51]} 20. Bg5 {[%clk 00:08:14]} {[%emt 00:00:29]} c4 {[%clk 00:04:01]}
{[%emt 00:02:30]} 21. a5 {[%clk 00:07:47]} {[%emt 00:00:32]} b5 {[%clk
00:03:53]} {[%emt 00:00:13]} 22. Rae1 {[%clk 00:07:30]} {[%emt 00:00:22]} Re5
{[%clk 00:03:18]} {[%emt 00:00:40]} 23. Nxf6+ {[%clk 00:06:30]} {[%emt
00:01:06]} Bxf6 {[%clk 00:03:22]} 24. Bxf6 {[%clk 00:06:18]} {[%emt 00:00:17]}
Qxf6 {[%clk 00:03:24]} {[%emt 00:00:03]} 25. Qc3 {[%clk 00:06:21]} {[%emt
00:00:02]} 1-0

[Event "The Kvibergspelen 2023"]
[Site "Kviberg Park Hotel & Conference, Krutvagen 2, Gothenburg, Sweden"]
[Date "2023.09.15"]
[Round "4.5"]
[White "Lindholm, Gustav"]
[Black "Golubka, Petro"]
[Result "0-1"]
[TimeControl "15 minutes + 5 seconds per move from move one (Round 1 - 4) / 90 minutes + 30 seconds per move from move one (Round 5 - 8)"]
[BlackTitle "GM"]
[WhiteFideId "1736515"]
[BlackFideId "14114224"]
[WhiteElo "2102"]
[BlackElo "2439"]

1. d4 {[%clk 00:15:03]} {[%emt 00:00:07]} Nf6 {[%clk 00:13:05]} {[%emt
00:02:06]} 2. c4 {[%clk 00:15:06]} {[%emt 00:00:01]} g6 {[%clk 00:13:05]}
{[%emt 00:00:04]} 3. g3 {[%clk 00:15:09]} {[%emt 00:00:02]} Bg7 {[%clk
00:13:05]} {[%emt 00:00:06]} 4. Bg2 {[%emt 00:00:05]} d5 {[%clk 00:13:07]} 5.
cxd5 {[%clk 00:15:08]} {[%emt 00:00:09]} Nxd5 {[%clk 00:13:09]} {[%emt
00:00:04]} 6. Nf3 {[%clk 00:15:08]} {[%emt 00:00:04]} O-O {[%clk 00:13:11]}
{[%emt 00:00:04]} 7. O-O {[%clk 00:14:44]} {[%emt 00:00:29]} Nc6 {[%clk
00:12:55]} {[%emt 00:00:21]} 8. Nc3 {[%clk 00:14:37]} {[%emt 00:00:11]} Nb6
{[%clk 00:12:54]} {[%emt 00:00:06]} 9. e4 {[%clk 00:14:23]} {[%emt 00:00:20]}
Nxd4 {[%clk 00:12:25]} {[%emt 00:00:33]} 10. Nxd4 {[%clk 00:14:25]} {[%emt
00:00:03]} Bxd4 {[%clk 00:12:19]} {[%emt 00:00:11]} 11. Bh6 {[%clk 00:14:17]}
{[%emt 00:00:13]} Bg7 {[%clk 00:12:20]} {[%emt 00:00:05]} 12. Bf4 {[%clk
00:13:43]} {[%emt 00:00:38]} e5 {[%clk 00:12:06]} {[%emt 00:00:18]} 13. Be3
{[%clk 00:13:44]} {[%emt 00:00:05]} Qxd1 {[%clk 00:11:57]} {[%emt 00:00:14]} 14.
Rfxd1 {[%clk 00:13:47]} {[%emt 00:00:02]} c6 {[%clk 00:12:01]} {[%emt
00:00:02]} 15. a4 {[%clk 00:13:38]} {[%emt 00:00:14]} Bg4 {[%clk 00:11:38]}
{[%emt 00:00:26]} 16. f3 {[%clk 00:13:37]} {[%emt 00:00:06]} Be6 {[%clk
00:11:38]} {[%emt 00:00:05]} 17. a5 {[%clk 00:13:32]} {[%emt 00:00:11]} Nc4
{[%clk 00:11:31]} {[%emt 00:00:12]} 18. Bc5 {[%clk 00:13:19]} {[%emt 00:00:18]}
Rfc8 {[%clk 00:11:16]} {[%emt 00:00:19]} 19. b4 {[%clk 00:12:18]} {[%emt
00:01:07]} b6 {[%clk 00:11:09]} {[%emt 00:00:13]} 20. Bf2 {[%clk 00:11:30]}
{[%emt 00:00:53]} Bf8 {[%clk 00:10:57]} {[%emt 00:00:16]} 21. axb6 {[%clk
00:11:20]} {[%emt 00:00:15]} axb6 {[%clk 00:11:01]} {[%emt 00:00:02]} 22. b5
{[%clk 00:11:06]} {[%emt 00:00:18]} Rxa1 {[%clk 00:08:55]} {[%emt 00:02:11]} 23.
Rxa1 {[%clk 00:11:07]} {[%emt 00:00:04]} Bb4 {[%clk 00:08:44]} {[%emt
00:00:17]} 24. Ne2 {[%clk 00:10:00]} {[%emt 00:01:11]} cxb5 {[%clk 00:07:54]}
{[%emt 00:00:55]} 25. Rb1 {[%clk 00:09:08]} {[%emt 00:00:57]} Ra8 {[%clk
00:07:06]} {[%emt 00:00:53]} 26. Bxb6 {[%clk 00:08:28]} {[%emt 00:00:46]} Ra4
{[%clk 00:06:47]} {[%emt 00:00:22]} 27. Bf2 {[%clk 00:07:32]} {[%emt 00:01:01]}
Nd2 {[%clk 00:06:45]} {[%emt 00:00:07]} 28. Rc1 {[%clk 00:07:03]} {[%emt
00:00:34]} Bc4 {[%clk 00:06:40]} {[%emt 00:00:06]} 29. Be3 {[%clk 00:06:10]}
{[%emt 00:01:01]} Bxe2 {[%clk 00:06:24]} {[%emt 00:00:22]} 30. Rc2 {[%clk
00:04:54]} {[%emt 00:01:21]} Nc4 {[%clk 00:06:14]} {[%emt 00:00:16]} 31. Rxe2
{[%clk 00:04:52]} {[%emt 00:00:06]} Nxe3 {[%clk 00:06:06]} {[%emt 00:00:12]} 32.
Rxe3 {[%clk 00:04:54]} {[%emt 00:00:04]} Bc5 {[%clk 00:06:03]} {[%emt
00:00:08]} 0-1

[Event "The Kvibergspelen 2023"]
[Site "Kviberg Park Hotel & Conference, Krutvagen 2, Gothenburg, Sweden"]
[Date "2023.09.15"]
[Round "4.7"]
[White "Akesson, Ralf"]
[Black "Bohman Karlholm, Adrian"]
[Result "1-0"]
[TimeControl "15 minutes + 5 seconds per move from move one (Round 1 - 4) / 90 minutes + 30 seconds per move from move one (Round 5 - 8)"]
[WhiteTitle "GM"]
[WhiteFideId "1700120"]
[BlackFideId "1720643"]
[WhiteElo "2410"]
[BlackElo "2134"]

1. d4 {[%clk 00:15:07]} {[%emt 00:00:01]} d5 {[%clk 00:15:08]} {[%emt
00:00:03]} 2. c4 {[%clk 00:15:10]} {[%emt 00:00:01]} e6 {[%clk 00:15:11]}
{[%emt 00:00:03]} 3. Nc3 {[%clk 00:15:13]} {[%emt 00:00:02]} a6 {[%clk
00:15:14]} {[%emt 00:00:02]} 4. cxd5 {[%clk 00:15:12]} {[%emt 00:00:06]} exd5
{[%clk 00:15:17]} {[%emt 00:00:02]} 5. Nf3 {[%clk 00:15:15]} {[%emt 00:00:02]}
Nf6 {[%clk 00:15:20]} {[%emt 00:00:02]} 6. Bg5 {[%clk 00:15:13]} {[%emt
00:00:08]} Be6 {[%clk 00:15:21]} {[%emt 00:00:03]} 7. e3 {[%clk 00:15:10]}
{[%emt 00:00:08]} Nbd7 {[%clk 00:15:19]} {[%emt 00:00:07]} 8. Bd3 {[%clk
00:14:58]} {[%emt 00:00:17]} Bd6 {[%clk 00:15:14]} {[%emt 00:00:10]} 9. O-O
{[%clk 00:14:41]} {[%emt 00:00:23]} c6 {[%clk 00:15:14]} {[%emt 00:00:04]} 10.
Qc2 {[%clk 00:14:08]} {[%emt 00:00:38]} Qc7 {[%clk 00:15:12]} {[%emt 00:00:08]}
11. Bh4 {[%clk 00:13:44]} {[%emt 00:00:29]} O-O {[%clk 00:15:04]} {[%emt
00:00:13]} 12. Bg3 {[%clk 00:12:35]} {[%emt 00:01:13]} h6 {[%clk 00:14:04]}
{[%emt 00:01:05]} 13. Na4 {[%clk 00:11:52]} {[%emt 00:00:48]} Rfe8 {[%clk
00:13:46]} {[%emt 00:00:24]} 14. Rfc1 {[%clk 00:11:52]} {[%emt 00:00:04]} Ne4
{[%clk 00:13:17]} {[%emt 00:00:34]} 15. Bxe4 {[%clk 00:11:11]} {[%emt
00:00:47]} dxe4 {[%clk 00:13:19]} {[%emt 00:00:02]} 16. Nd2 {[%clk 00:11:15]}
{[%emt 00:00:02]} Bd5 {[%clk 00:12:17]} {[%emt 00:01:06]} 17. Nc3 {[%clk
00:11:06]} {[%emt 00:00:15]} Bxg3 {[%clk 00:11:18]} {[%emt 00:01:04]} 18. hxg3
{[%clk 00:10:57]} {[%emt 00:00:13]} Nf6 {[%clk 00:09:21]} {[%emt 00:02:02]} 19.
Nxd5 {[%clk 00:10:56]} {[%emt 00:00:06]} Nxd5 {[%clk 00:09:23]} {[%emt
00:00:03]} 20. Nxe4 {[%clk 00:10:59]} {[%emt 00:00:03]} Qe7 {[%clk 00:09:07]}
{[%emt 00:00:20]} 21. Nc5 {[%clk 00:10:54]} {[%emt 00:00:10]} Nf6 {[%clk
00:07:45]} {[%emt 00:01:29]} 22. Re1 {[%clk 00:10:43]} {[%emt 00:00:15]} Ng4
{[%clk 00:06:55]} {[%emt 00:00:55]} 23. Qf5 {[%clk 00:10:25]} {[%emt 00:00:23]}
Nf6 {[%clk 00:06:43]} {[%emt 00:00:17]} 24. e4 {[%clk 00:10:01]} {[%emt
00:00:29]} Rad8 {[%clk 00:06:31]} {[%emt 00:00:17]} 25. Rad1 {[%clk 00:09:57]}
{[%emt 00:00:09]} b6 {[%clk 00:05:47]} {[%emt 00:00:49]} 26. Nb3 {[%clk
00:07:52]} {[%emt 00:02:10]} Nxe4 {[%clk 00:05:20]} {[%emt 00:00:32]} 27. g4
{[%clk 00:07:24]} {[%emt 00:00:34]} Qe6 {[%clk 00:05:04]} {[%emt 00:00:20]} 28.
Qf4 {[%clk 00:05:51]} {[%emt 00:01:38]} Qd5 {[%clk 00:05:04]} {[%emt 00:00:05]}
29. Qc7 {[%clk 00:05:33]} {[%emt 00:00:24]} b5 {[%clk 00:04:25]} {[%emt
00:00:44]} 30. Rc1 {[%clk 00:05:09]} {[%emt 00:00:29]} Nf6 {[%clk 00:04:08]}
{[%emt 00:00:22]} 31. f3 {[%clk 00:04:19]} {[%emt 00:00:55]} Rxe1+ {[%clk
00:04:05]} {[%emt 00:00:08]} 32. Rxe1 {[%clk 00:04:23]} Rd7 {[%clk 00:03:51]}
{[%emt 00:00:18]} 33. Qc8+ {[%clk 00:04:17]} {[%emt 00:00:10]} Kh7 {[%clk
00:03:53]} {[%emt 00:00:04]} 34. Qxa6 {[%clk 00:04:17]} {[%emt 00:00:05]} Qc4
{[%clk 00:03:46]} {[%emt 00:00:11]} 35. Rc1 {[%clk 00:04:12]} {[%emt 00:00:12]}
Qe2 {[%clk 00:03:41]} {[%emt 00:00:10]} 36. Qxc6 {[%clk 00:04:11]} {[%emt
00:00:05]} Qe3+ {[%clk 00:03:20]} {[%emt 00:00:26]} 37. Kh1 {[%clk 00:04:04]}
{[%emt 00:00:12]} Re7 {[%clk 00:02:50]} {[%emt 00:00:35]} 38. Qxb5 {[%clk
00:03:55]} {[%emt 00:00:15]} Qf2 {[%clk 00:02:40]} {[%emt 00:00:14]} 39. Qf5+
{[%clk 00:03:45]} {[%emt 00:00:15]} Kg8 {[%clk 00:02:29]} {[%emt 00:00:16]} 40.
g5 {[%clk 00:01:42]} {[%emt 00:02:08]} g6 {[%clk 00:02:08]} {[%emt 00:00:27]}
41. Qc8+ {[%clk 00:00:33]} {[%emt 00:01:14]} Kh7 {[%clk 00:01:48]} {[%emt
00:00:25]} 42. Qh3 {[%clk 00:00:29]} {[%emt 00:00:10]} Nh5 {[%clk 00:01:48]}
{[%emt 00:00:04]} 43. Nc5 {[%clk 00:00:15]} {[%emt 00:00:19]} Qxb2 {[%clk
00:01:20]} {[%emt 00:00:33]} 44. Rg1 {[%clk 00:00:11]} {[%emt 00:00:11]} Qxd4
{[%clk 00:01:15]} {[%emt 00:00:07]} 45. Ne4 {[%clk 00:00:15]} {[%emt 00:00:01]}
Kg8 {[%clk 00:00:27]} {[%emt 00:01:04]} 46. g4 {[%clk 00:00:16]} {[%emt
00:00:11]} Nf4 {[%clk 00:00:27]} {[%emt 00:00:12]} 47. Nf6+ {[%emt 00:01:55]}
1-0